[Event "Early-Titled-Tuesday-Blitz-September-26-2023"]
[Site "Chess.com"]
[Date "2023.09.26"]
[Round "1"]
[White "arminmusovic"]
[Black "JimDiGrease"]
[Result "0-1"]
[WhiteElo "2492"]
[BlackElo "2849"]
[TimeControl "180+1"]
[EndTime "8:05:25 PDT"]
[Termination "JimDiGrease won by resignation"]

1. a3 {[%clk 0:02:59.1]} 1... d5 {[%clk 0:02:58.5]} 2. Nc3 {[%clk 0:02:58.7]}
2... Nf6 {[%clk 0:02:52.8]} 3. d3 {[%clk 0:02:57.9]} 3... c5 {[%clk 0:02:52.4]}
4. Bg5 {[%clk 0:02:57.6]} 4... Nc6 {[%clk 0:02:43.6]} 5. e4 {[%clk 0:02:57.2]}
5... d4 {[%clk 0:02:41]} 6. Nb1 {[%clk 0:02:55.5]} 6... e5 {[%clk 0:02:39.5]} 7.
h3 {[%clk 0:02:54.9]} 7... Be7 {[%clk 0:02:39.4]} 8. Nd2 {[%clk 0:02:52]} 8...
O-O {[%clk 0:02:36.9]} 9. g4 {[%clk 0:02:43.2]} 9... Be6 {[%clk 0:02:34.7]} 10.
Ne2 {[%clk 0:02:36.9]} 10... h6 {[%clk 0:02:21.7]} 11. Bxf6 {[%clk 0:02:31.9]}
11... Bxf6 {[%clk 0:02:14.3]} 12. Bg2 {[%clk 0:02:30.4]} 12... Rc8 {[%clk
0:02:04.7]} 13. O-O {[%clk 0:02:26]} 13... b5 {[%clk 0:02:03.9]} 14. b3 {[%clk
0:02:11.2]} 14... Bg5 {[%clk 0:01:58.9]} 15. f4 {[%clk 0:02:04.5]} 15... exf4
{[%clk 0:01:58.9]} 16. Nxf4 {[%clk 0:02:05.4]} 16... Bxf4 {[%clk 0:01:51.8]} 17.
Rxf4 {[%clk 0:02:05.2]} 17... Ne5 {[%clk 0:01:52.7]} 18. Qe2 {[%clk 0:01:51.9]}
18... c4 {[%clk 0:01:46.7]} 19. Raf1 {[%clk 0:01:38]} 19... cxd3 {[%clk
0:01:42.5]} 20. cxd3 {[%clk 0:01:38.9]} 20... Rc2 {[%clk 0:01:38.3]} 21. Qd1
{[%clk 0:01:38.4]} 21... Rc3 {[%clk 0:01:37.4]} 22. Nf3 {[%clk 0:01:12.1]} 22...
Rxd3 {[%clk 0:01:36.4]} 23. Qe2 {[%clk 0:01:05.2]} 23... Re3 {[%clk 0:01:31.5]}
24. Qxb5 {[%clk 0:01:01.1]} 24... Ng6 {[%clk 0:01:29.3]} 25. Rf5 {[%clk
0:00:52.5]} 25... Bxf5 {[%clk 0:01:29.4]} 26. exf5 {[%clk 0:00:48.6]} 26... Nf4
{[%clk 0:01:28]} 27. Qc5 {[%clk 0:00:37.8]} 27... Re2 {[%clk 0:01:26.3]} 28. Rf2
{[%clk 0:00:34]} 28... Rxf2 {[%clk 0:01:25.5]} 29. Kxf2 {[%clk 0:00:34.1]} 29...
Nd3+ {[%clk 0:01:25.9]} 30. Kg3 {[%clk 0:00:34.6]} 30... Nxc5 {[%clk 0:01:26.8]}
31. f6 {[%clk 0:00:34.4]} 31... Qxf6 {[%clk 0:01:26.6]} 0-1

[Event "Early-Titled-Tuesday-Blitz-September-26-2023"]
[Site "Chess.com"]
[Date "2023.09.26"]
[Round "1"]
[White "twofoxniel"]
[Black "GiorgianBarbosa"]
[Result "1-0"]
[WhiteElo "2680"]
[BlackElo "2376"]
[TimeControl "180+1"]
[EndTime "8:05:27 PDT"]
[Termination "twofoxniel won by resignation"]

1. e4 {[%clk 0:03:00.9]} 1... c5 {[%clk 0:02:56.1]} 2. c3 {[%clk 0:03:00.5]}
2... g6 {[%clk 0:02:57]} 3. d4 {[%clk 0:03:00.4]} 3... cxd4 {[%clk 0:02:55.9]}
4. cxd4 {[%clk 0:03:01.3]} 4... d5 {[%clk 0:02:47]} 5. exd5 {[%clk 0:03:02.2]}
5... Nf6 {[%clk 0:02:45.5]} 6. Nc3 {[%clk 0:03:01.4]} 6... Nxd5 {[%clk
0:02:44.1]} 7. Bc4 {[%clk 0:03:00.4]} 7... Nb6 {[%clk 0:02:44.3]} 8. Bb3 {[%clk
0:02:59.6]} 8... Bg7 {[%clk 0:02:42.8]} 9. Nf3 {[%clk 0:02:54.3]} 9... Nc6
{[%clk 0:02:40.7]} 10. Be3 {[%clk 0:02:35]} 10... O-O {[%clk 0:02:34.6]} 11. d5
{[%clk 0:02:32.8]} 11... Na5 {[%clk 0:02:34.3]} 12. Bd4 {[%clk 0:02:28.5]} 12...
Nxb3 {[%clk 0:02:28.5]} 13. axb3 {[%clk 0:02:27.4]} 13... Bh6 {[%clk 0:02:00]}
14. Bc5 {[%clk 0:01:41.7]} 14... Bg4 {[%clk 0:01:54]} 15. O-O {[%clk 0:01:40.2]}
15... Rc8 {[%clk 0:01:45.7]} 16. b4 {[%clk 0:01:40.1]} 16... Nc4 {[%clk
0:01:09.3]} 17. Rxa7 {[%clk 0:01:30.3]} 17... b6 {[%clk 0:01:03.7]} 18. Bxe7
{[%clk 0:01:29.1]} 18... Qe8 {[%clk 0:01:01.1]} 19. Bxf8 {[%clk 0:01:27.2]}
19... Qxf8 {[%clk 0:01:02]} 20. Ne4 {[%clk 0:01:17.1]} 20... Qxb4 {[%clk
0:00:56]} 21. Nf6+ {[%clk 0:01:15.7]} 21... Kf8 {[%clk 0:00:46.6]} 22. Nxg4
{[%clk 0:01:14.6]} 22... Nxb2 {[%clk 0:00:47.5]} 23. Qe2 {[%clk 0:01:06.1]}
23... Qxg4 {[%clk 0:00:46]} 24. Qe7+ {[%clk 0:01:05.4]} 1-0

[Event "Early-Titled-Tuesday-Blitz-September-26-2023"]
[Site "Chess.com"]
[Date "2023.09.26"]
[Round "1"]
[White "ArtemDyachuk"]
[Black "Noki102"]
[Result "1-0"]
[WhiteElo "2706"]
[BlackElo "2412"]
[TimeControl "180+1"]
[EndTime "8:05:28 PDT"]
[Termination "ArtemDyachuk won by checkmate"]

1. e4 {[%clk 0:03:00.9]} 1... e5 {[%clk 0:02:59.9]} 2. Nf3 {[%clk 0:02:59.5]}
2... Nc6 {[%clk 0:03:00]} 3. Bb5 {[%clk 0:02:54.6]} 3... a6 {[%clk 0:02:58.4]}
4. Ba4 {[%clk 0:02:54.1]} 4... g6 {[%clk 0:02:58.2]} 5. O-O {[%clk 0:02:46.2]}
5... Bg7 {[%clk 0:02:57.5]} 6. c3 {[%clk 0:02:46.5]} 6... d6 {[%clk 0:02:53.1]}
7. d4 {[%clk 0:02:46.2]} 7... exd4 {[%clk 0:02:52]} 8. cxd4 {[%clk 0:02:47.1]}
8... b5 {[%clk 0:02:51.7]} 9. Bb3 {[%clk 0:02:46.9]} 9... Na5 {[%clk 0:02:51.4]}
10. Bc2 {[%clk 0:02:43.5]} 10... Ne7 {[%clk 0:02:47.9]} 11. Bg5 {[%clk
0:02:29.6]} 11... h6 {[%clk 0:02:42.2]} 12. Bh4 {[%clk 0:02:28.5]} 12... g5
{[%clk 0:02:30.6]} 13. Bg3 {[%clk 0:02:27.4]} 13... Bg4 {[%clk 0:02:29.8]} 14.
Re1 {[%clk 0:02:12.9]} 14... O-O {[%clk 0:02:27.5]} 15. h3 {[%clk 0:01:31.1]}
15... Bxf3 {[%clk 0:02:14.6]} 16. Qxf3 {[%clk 0:01:30.3]} 16... f5 {[%clk
0:02:14.2]} 17. exf5 {[%clk 0:01:28.8]} 17... Bxd4 {[%clk 0:02:06.7]} 18. Rxe7
{[%clk 0:01:20.8]} 18... Qxe7 {[%clk 0:01:58.4]} 19. Qd5+ {[%clk 0:01:20.3]}
19... Qf7 {[%clk 0:01:49.9]} 20. Qxd4 {[%clk 0:01:19.7]} 20... Qc4 {[%clk
0:01:45.7]} 21. Qd2 {[%clk 0:01:16.8]} 21... Rae8 {[%clk 0:01:39.8]} 22. Na3
{[%clk 0:00:59.2]} 22... Qe2 {[%clk 0:01:03.5]} 23. Qxa5 {[%clk 0:00:57.2]}
23... h5 {[%clk 0:01:02.3]} 24. Qxc7 {[%clk 0:00:52.8]} 24... Rc8 {[%clk
0:00:54.1]} 25. Bb3+ {[%clk 0:00:52]} 25... Kh8 {[%clk 0:00:53.2]} 26. Qxd6
{[%clk 0:00:52]} 26... Rxf5 {[%clk 0:00:48.7]} 27. Qh6# {[%clk 0:00:50.6]} 1-0

[Event "Early-Titled-Tuesday-Blitz-September-26-2023"]
[Site "Chess.com"]
[Date "2023.09.26"]
[Round "1"]
[White "JosefineHeinemann"]
[Black "pinguino120"]
[Result "1-0"]
[WhiteElo "2579"]
[BlackElo "2207"]
[TimeControl "180+1"]
[EndTime "8:05:29 PDT"]
[Termination "JosefineHeinemann won by resignation"]

1. e4 {[%clk 0:03:00.4]} 1... c5 {[%clk 0:03:00.1]} 2. c3 {[%clk 0:02:52.2]}
2... g6 {[%clk 0:02:56.9]} 3. d4 {[%clk 0:02:51.4]} 3... cxd4 {[%clk 0:02:56.5]}
4. cxd4 {[%clk 0:02:52.3]} 4... d5 {[%clk 0:02:57.1]} 5. e5 {[%clk 0:02:49.8]}
5... Nc6 {[%clk 0:02:52.6]} 6. Bb5 {[%clk 0:02:44.4]} 6... Bg7 {[%clk
0:02:42.9]} 7. Nc3 {[%clk 0:02:43.8]} 7... Nh6 {[%clk 0:02:36.4]} 8. Nf3 {[%clk
0:02:38.8]} 8... Bg4 {[%clk 0:02:33.2]} 9. h3 {[%clk 0:02:38.4]} 9... Bxf3
{[%clk 0:02:32.5]} 10. Qxf3 {[%clk 0:02:38.4]} 10... O-O {[%clk 0:02:31.1]} 11.
Bxc6 {[%clk 0:02:36.9]} 11... bxc6 {[%clk 0:02:30.9]} 12. O-O {[%clk 0:02:37.6]}
12... f6 {[%clk 0:02:28.4]} 13. exf6 {[%clk 0:02:36.6]} 13... Rxf6 {[%clk
0:02:26.9]} 14. Qe2 {[%clk 0:02:35.9]} 14... Nf5 {[%clk 0:02:23.3]} 15. Bg5
{[%clk 0:02:34.7]} 15... Rf7 {[%clk 0:02:23.2]} 16. Rad1 {[%clk 0:02:14.7]}
16... Nxd4 {[%clk 0:02:19.2]} 17. Qg4 {[%clk 0:02:05.6]} 17... Nf5 {[%clk
0:02:14.9]} 18. Rfe1 {[%clk 0:01:59.4]} 18... Qf8 {[%clk 0:02:09.5]} 19. Qa4
{[%clk 0:01:55.8]} 19... Qe8 {[%clk 0:01:44.3]} 20. Re6 {[%clk 0:01:52.4]} 20...
Rc8 {[%clk 0:01:28.8]} 21. Qxa7 {[%clk 0:01:39.7]} 21... h6 {[%clk 0:01:15]} 22.
Bc1 {[%clk 0:01:32.1]} 22... Kh7 {[%clk 0:01:14.5]} 23. Rde1 {[%clk 0:01:29.5]}
23... Bf6 {[%clk 0:01:09]} 24. Bf4 {[%clk 0:01:02.8]} 24... Bd4 {[%clk
0:00:53.6]} 25. Qb7 {[%clk 0:00:53.8]} 25... Rb8 {[%clk 0:00:49.3]} 26. Qxb8
{[%clk 0:00:53.1]} 1-0

[Event "Early-Titled-Tuesday-Blitz-September-26-2023"]
[Site "Chess.com"]
[Date "2023.09.26"]
[Round "1"]
[White "AhmadzadaA"]
[Black "Herman-NY"]
[Result "1-0"]
[WhiteElo "2930"]
[BlackElo "2507"]
[TimeControl "180+1"]
[EndTime "8:05:31 PDT"]
[Termination "AhmadzadaA won on time"]

1. Nf3 {[%clk 0:02:59.4]} 1... Nf6 {[%clk 0:02:57.1]} 2. d4 {[%clk 0:02:58]}
2... g6 {[%clk 0:02:57.7]} 3. Bf4 {[%clk 0:02:55.4]} 3... Bg7 {[%clk 0:02:57.7]}
4. Nc3 {[%clk 0:02:55]} 4... d5 {[%clk 0:02:57.5]} 5. e3 {[%clk 0:02:54.6]} 5...
O-O {[%clk 0:02:57.3]} 6. h3 {[%clk 0:02:52.5]} 6... c5 {[%clk 0:02:50.3]} 7.
Be2 {[%clk 0:02:43.6]} 7... cxd4 {[%clk 0:02:43.5]} 8. exd4 {[%clk 0:02:42.3]}
8... Nc6 {[%clk 0:02:43.8]} 9. O-O {[%clk 0:02:41.2]} 9... Ne4 {[%clk
0:02:33.3]} 10. Bd3 {[%clk 0:02:29.7]} 10... Bf5 {[%clk 0:02:16.3]} 11. Re1
{[%clk 0:02:23.4]} 11... Nxd4 {[%clk 0:01:56.2]} 12. Nxe4 {[%clk 0:02:11.8]}
12... dxe4 {[%clk 0:01:45.4]} 13. Bxe4 {[%clk 0:02:12.4]} 13... Bxe4 {[%clk
0:01:39.2]} 14. Rxe4 {[%clk 0:02:11.6]} 14... Nxf3+ {[%clk 0:01:11.4]} 15. Qxf3
{[%clk 0:02:12.5]} 15... Bxb2 {[%clk 0:01:10.1]} 16. Rb1 {[%clk 0:02:11.3]}
16... Bf6 {[%clk 0:01:06.6]} 17. Rxb7 {[%clk 0:02:01]} 17... Qd5 {[%clk
0:00:52.3]} 18. Rc7 {[%clk 0:01:38.6]} 18... Qxa2 {[%clk 0:00:50.3]} 19. Bh6
{[%clk 0:01:38.6]} 19... Qa1+ {[%clk 0:00:32.1]} 20. Kh2 {[%clk 0:01:37.7]}
20... Be5+ {[%clk 0:00:32.3]} 21. g3 {[%clk 0:01:31.9]} 21... Bxc7 {[%clk
0:00:27.4]} 22. Rxe7 {[%clk 0:01:32.6]} 22... Bb6 {[%clk 0:00:23.6]} 23. c3
{[%clk 0:01:30.2]} 23... Qb2 {[%clk 0:00:09.2]} 24. Re2 {[%clk 0:01:28.1]} 1-0

[Event "Early-Titled-Tuesday-Blitz-September-26-2023"]
[Site "Chess.com"]
[Date "2023.09.26"]
[Round "1"]
[White "BahadirOzen"]
[Black "Kielinkei"]
[Result "1-0"]
[WhiteElo "2802"]
[BlackElo "2473"]
[TimeControl "180+1"]
[EndTime "8:05:33 PDT"]
[Termination "BahadirOzen won by resignation"]

1. g3 {[%clk 0:03:00.9]} 1... e5 {[%clk 0:02:58.7]} 2. Bg2 {[%clk 0:03:00.6]}
2... d5 {[%clk 0:02:59.3]} 3. d3 {[%clk 0:03:01]} 3... Nf6 {[%clk 0:02:59.8]} 4.
Nf3 {[%clk 0:03:01.4]} 4... Nc6 {[%clk 0:02:56.8]} 5. O-O {[%clk 0:03:00.4]}
5... Be7 {[%clk 0:02:56.5]} 6. c3 {[%clk 0:03:00]} 6... O-O {[%clk 0:02:56.8]}
7. Qc2 {[%clk 0:02:58.2]} 7... h6 {[%clk 0:02:56.9]} 8. Nbd2 {[%clk 0:02:57.4]}
8... Be6 {[%clk 0:02:57.2]} 9. b4 {[%clk 0:02:57.2]} 9... Bd6 {[%clk 0:02:51.5]}
10. Bb2 {[%clk 0:02:55.5]} 10... Ne7 {[%clk 0:02:48.2]} 11. c4 {[%clk
0:02:47.5]} 11... Bxb4 {[%clk 0:02:40.6]} 12. Bxe5 {[%clk 0:02:41.8]} 12... c6
{[%clk 0:02:36.1]} 13. Rfb1 {[%clk 0:02:38.9]} 13... Bxd2 {[%clk 0:02:33.2]} 14.
Nxd2 {[%clk 0:02:37]} 14... Nd7 {[%clk 0:02:29]} 15. Bb2 {[%clk 0:02:27.1]}
15... Rc8 {[%clk 0:02:17.8]} 16. Qc3 {[%clk 0:02:24.5]} 16... Nf6 {[%clk
0:02:12.4]} 17. c5 {[%clk 0:02:18.3]} 17... b5 {[%clk 0:02:02.3]} 18. a4 {[%clk
0:02:14.9]} 18... a6 {[%clk 0:02:00.7]} 19. axb5 {[%clk 0:02:12.7]} 19... axb5
{[%clk 0:02:00.5]} 20. Nf3 {[%clk 0:02:10.7]} 20... Ng6 {[%clk 0:01:48.3]} 21.
Nd4 {[%clk 0:02:09.3]} 21... Qd7 {[%clk 0:01:42.2]} 22. f3 {[%clk 0:01:59.2]}
22... Ra8 {[%clk 0:01:40]} 23. e4 {[%clk 0:01:57.7]} 23... Rfd8 {[%clk
0:01:29.2]} 24. Rd1 {[%clk 0:01:37.5]} 24... h5 {[%clk 0:01:04.6]} 25. Nxe6
{[%clk 0:01:11.8]} 25... fxe6 {[%clk 0:01:03.9]} 26. Bh3 {[%clk 0:01:10.9]}
26... Qf7 {[%clk 0:00:56.4]} 27. Kg2 {[%clk 0:01:04.6]} 27... e5 {[%clk
0:00:51.9]} 28. Qb3 {[%clk 0:00:59.9]} 28... d4 {[%clk 0:00:46.2]} 29. Be6
{[%clk 0:00:59.5]} 1-0

[Event "Early-Titled-Tuesday-Blitz-September-26-2023"]
[Site "Chess.com"]
[Date "2023.09.26"]
[Round "1"]
[White "Raskolnikov6"]
[Black "Doomfist26"]
[Result "0-1"]
[WhiteElo "2314"]
[BlackElo "2619"]
[TimeControl "180+1"]
[EndTime "8:05:35 PDT"]
[Termination "Doomfist26 won by checkmate"]

1. d4 {[%clk 0:02:57.9]} 1... Nf6 {[%clk 0:02:59.8]} 2. c4 {[%clk 0:02:57.6]}
2... g6 {[%clk 0:03:00.3]} 3. Nc3 {[%clk 0:02:56.5]} 3... Bg7 {[%clk 0:03:00.8]}
4. e4 {[%clk 0:02:57]} 4... d6 {[%clk 0:03:01.4]} 5. h3 {[%clk 0:02:56.9]} 5...
O-O {[%clk 0:03:01.4]} 6. Be3 {[%clk 0:02:57.5]} 6... e5 {[%clk 0:03:01.7]} 7.
d5 {[%clk 0:02:51.2]} 7... a5 {[%clk 0:03:01.5]} 8. Nf3 {[%clk 0:02:45.8]} 8...
Na6 {[%clk 0:03:01.8]} 9. g4 {[%clk 0:02:38.6]} 9... Nc5 {[%clk 0:03:01.7]} 10.
Nd2 {[%clk 0:02:38.7]} 10... c6 {[%clk 0:02:54.4]} 11. Be2 {[%clk 0:02:22.4]}
11... cxd5 {[%clk 0:02:54.1]} 12. cxd5 {[%clk 0:02:21.4]} 12... Bd7 {[%clk
0:02:54.3]} 13. a4 {[%clk 0:02:12.8]} 13... Qb6 {[%clk 0:02:14.1]} 14. Nc4
{[%clk 0:02:04.3]} 14... Qc7 {[%clk 0:02:10.7]} 15. f3 {[%clk 0:01:59.4]} 15...
Ne8 {[%clk 0:02:07.7]} 16. Rc1 {[%clk 0:01:41.7]} 16... Qd8 {[%clk 0:02:02.3]}
17. h4 {[%clk 0:01:29.4]} 17... f5 {[%clk 0:02:01.8]} 18. Bg5 {[%clk 0:01:03.9]}
18... Bf6 {[%clk 0:01:58.1]} 19. gxf5 {[%clk 0:00:49.3]} 19... Bxg5 {[%clk
0:01:36.3]} 20. hxg5 {[%clk 0:00:49.1]} 20... Qxg5 {[%clk 0:01:37]} 21. fxg6
{[%clk 0:00:46]} 21... hxg6 {[%clk 0:01:26.5]} 22. Kf2 {[%clk 0:00:28.6]} 22...
Nf6 {[%clk 0:01:23.7]} 23. Nxd6 {[%clk 0:00:17.2]} 23... Ng4+ {[%clk 0:01:23.7]}
24. Ke1 {[%clk 0:00:16.6]} 24... Ne3 {[%clk 0:01:22.3]} 25. Qd2 {[%clk
0:00:05.9]} 25... Qg3# {[%clk 0:01:22.5]} 0-1

[Event "Early-Titled-Tuesday-Blitz-September-26-2023"]
[Site "Chess.com"]
[Date "2023.09.26"]
[Round "1"]
[White "Kostya0705"]
[Black "YouShallNotPass001"]
[Result "1-0"]
[WhiteElo "2619"]
[BlackElo "2314"]
[TimeControl "180+1"]
[EndTime "8:05:37 PDT"]
[Termination "Kostya0705 won by resignation"]

1. e4 {[%clk 0:02:59.7]} 1... e6 {[%clk 0:02:58.9]} 2. d4 {[%clk 0:02:59.2]}
2... d5 {[%clk 0:02:59.8]} 3. Nc3 {[%clk 0:02:59.7]} 3... Be7 {[%clk 0:02:59.9]}
4. e5 {[%clk 0:02:57.7]} 4... c5 {[%clk 0:02:59.7]} 5. Nf3 {[%clk 0:02:54.5]}
5... Nc6 {[%clk 0:03:00.2]} 6. Bf4 {[%clk 0:02:53.3]} 6... cxd4 {[%clk
0:02:58.6]} 7. Nxd4 {[%clk 0:02:52.5]} 7... Qb6 {[%clk 0:02:59.5]} 8. Nb3 {[%clk
0:02:49]} 8... a5 {[%clk 0:02:50.5]} 9. a4 {[%clk 0:02:41.6]} 9... Nh6 {[%clk
0:02:44.3]} 10. Bxh6 {[%clk 0:02:40]} 10... gxh6 {[%clk 0:02:45.2]} 11. f4
{[%clk 0:02:37.3]} 11... Bb4 {[%clk 0:02:37.7]} 12. Bb5 {[%clk 0:02:27.3]} 12...
Bd7 {[%clk 0:02:35.3]} 13. Qd3 {[%clk 0:02:19.5]} 13... d4 {[%clk 0:02:29.5]}
14. O-O-O {[%clk 0:02:19.2]} 14... dxc3 {[%clk 0:02:12.2]} 15. Qxd7+ {[%clk
0:02:08.4]} 15... Kf8 {[%clk 0:02:12.6]} 16. Qd3 {[%clk 0:01:48.4]} 16... cxb2+
{[%clk 0:02:09.2]} 17. Kb1 {[%clk 0:01:46.4]} 17... Na7 {[%clk 0:01:57.3]} 18.
Qh3 {[%clk 0:01:33.1]} 18... Nxb5 {[%clk 0:01:55.6]} 19. Qxh6+ {[%clk
0:01:31.8]} 19... Ke8 {[%clk 0:01:54.4]} 20. axb5 {[%clk 0:01:20.5]} 20... a4
{[%clk 0:01:36.1]} 21. Nd4 {[%clk 0:01:20.2]} 21... Bc3 {[%clk 0:01:36]} 22. Nf5
{[%clk 0:01:15]} 22... a3 {[%clk 0:01:23.3]} 23. Ka2 {[%clk 0:01:13]} 23... Qc7
{[%clk 0:00:31.4]} 24. Ng7+ {[%clk 0:01:06.9]} 24... Ke7 {[%clk 0:00:23.4]} 25.
Qf6+ {[%clk 0:01:04.5]} 25... Kf8 {[%clk 0:00:23.9]} 26. Nxe6+ {[%clk
0:01:04.6]} 1-0

[Event "Early-Titled-Tuesday-Blitz-September-26-2023"]
[Site "Chess.com"]
[Date "2023.09.26"]
[Round "1"]
[White "JoseRemolar"]
[Black "Lennis93"]
[Result "0-1"]
[WhiteElo "2431"]
[BlackElo "2732"]
[TimeControl "180+1"]
[EndTime "8:05:39 PDT"]
[Termination "Lennis93 won by resignation"]

1. e4 {[%clk 0:03:00.9]} 1... c6 {[%clk 0:02:58.6]} 2. d4 {[%clk 0:03:00.3]}
2... d5 {[%clk 0:02:59.5]} 3. e5 {[%clk 0:03:00.6]} 3... Bf5 {[%clk 0:02:59]} 4.
Nf3 {[%clk 0:03:00.9]} 4... e6 {[%clk 0:02:58.9]} 5. Be2 {[%clk 0:03:01.3]} 5...
Ne7 {[%clk 0:02:59.6]} 6. O-O {[%clk 0:03:01.7]} 6... Nd7 {[%clk 0:03:00]} 7.
Nbd2 {[%clk 0:03:01.8]} 7... Ng6 {[%clk 0:03:00.3]} 8. Nb3 {[%clk 0:02:57.1]}
8... f6 {[%clk 0:02:59.7]} 9. Re1 {[%clk 0:02:41.6]} 9... a5 {[%clk 0:02:56.6]}
10. a4 {[%clk 0:02:39.7]} 10... Bb4 {[%clk 0:02:56]} 11. c3 {[%clk 0:02:38.7]}
11... Be7 {[%clk 0:02:56.2]} 12. Bd3 {[%clk 0:02:32.6]} 12... Bxd3 {[%clk
0:02:19.7]} 13. Qxd3 {[%clk 0:02:33.5]} 13... fxe5 {[%clk 0:02:15.9]} 14. dxe5
{[%clk 0:02:21.5]} 14... O-O {[%clk 0:02:14.4]} 15. Nfd4 {[%clk 0:02:05.9]}
15... Ndxe5 {[%clk 0:02:12.1]} 16. Qh3 {[%clk 0:02:05.9]} 16... Qd7 {[%clk
0:02:08.7]} 17. Qxe6+ {[%clk 0:01:33.5]} 17... Qxe6 {[%clk 0:02:01.6]} 18. Nxe6
{[%clk 0:01:34.4]} 18... Rf6 {[%clk 0:02:01.9]} 19. Ng5 {[%clk 0:01:24.6]} 19...
Bd6 {[%clk 0:02:00.8]} 20. h3 {[%clk 0:01:13.9]} 20... Nc4 {[%clk 0:02:00.8]}
21. Nd2 {[%clk 0:01:09.2]} 21... Nce5 {[%clk 0:01:56.3]} 22. Ngf3 {[%clk
0:01:06]} 22... Nd3 {[%clk 0:01:54.6]} 23. Re3 {[%clk 0:01:00.3]} 23... Ngf4
{[%clk 0:01:52]} 24. Ne1 {[%clk 0:00:32.9]} 24... Nxc1 {[%clk 0:01:16.1]} 25.
Rxc1 {[%clk 0:00:32]} 25... Bc5 {[%clk 0:01:16.7]} 26. Re5 {[%clk 0:00:24]}
26... Bxf2+ {[%clk 0:01:16.3]} 27. Kxf2 {[%clk 0:00:24.1]} 27... Nd3+ {[%clk
0:01:15.8]} 28. Ke3 {[%clk 0:00:24.4]} 28... Nxe5 {[%clk 0:01:16]} 0-1

[Event "Early-Titled-Tuesday-Blitz-September-26-2023"]
[Site "Chess.com"]
[Date "2023.09.26"]
[Round "1"]
[White "Real_taiatai"]
[Black "Msb2"]
[Result "0-1"]
[WhiteElo "2527"]
[BlackElo "3085"]
[TimeControl "180+1"]
[EndTime "8:05:42 PDT"]
[Termination "Msb2 won by resignation"]

1. d4 {[%clk 0:02:59.6]} 1... d5 {[%clk 0:03:00.3]} 2. c4 {[%clk 0:02:59.8]}
2... e6 {[%clk 0:03:01]} 3. Nf3 {[%clk 0:02:59.5]} 3... Nf6 {[%clk 0:03:01.1]}
4. g3 {[%clk 0:02:59.6]} 4... Nc6 {[%clk 0:03:01.8]} 5. Bg2 {[%clk 0:03:00.1]}
5... Bd6 {[%clk 0:03:02.3]} 6. Nbd2 {[%clk 0:02:51.9]} 6... O-O {[%clk
0:03:01.6]} 7. O-O {[%clk 0:02:52.3]} 7... a5 {[%clk 0:03:02]} 8. Qc2 {[%clk
0:02:52.6]} 8... Nb4 {[%clk 0:03:02.5]} 9. Qb1 {[%clk 0:02:47.2]} 9... c5 {[%clk
0:03:01.7]} 10. a3 {[%clk 0:02:43]} 10... Nc6 {[%clk 0:03:01.7]} 11. cxd5 {[%clk
0:02:41.7]} 11... exd5 {[%clk 0:03:00.7]} 12. dxc5 {[%clk 0:02:41]} 12... Bxc5
{[%clk 0:03:01.6]} 13. Qc2 {[%clk 0:02:39.4]} 13... Bb6 {[%clk 0:02:59.3]} 14.
Nb3 {[%clk 0:02:36.8]} 14... a4 {[%clk 0:02:59.4]} 15. Nc5 {[%clk 0:02:34.1]}
15... Qe7 {[%clk 0:02:59.7]} 16. Nd3 {[%clk 0:02:27]} 16... Bf5 {[%clk
0:02:57.3]} 17. Bg5 {[%clk 0:02:23.7]} 17... h6 {[%clk 0:02:56.6]} 18. Bxf6
{[%clk 0:02:20.8]} 18... Qxf6 {[%clk 0:02:57.5]} 19. Rac1 {[%clk 0:02:13.7]}
19... Rfe8 {[%clk 0:02:55.5]} 20. Rfe1 {[%clk 0:02:13.4]} 20... Be4 {[%clk
0:02:48.1]} 21. Qd2 {[%clk 0:02:08.5]} 21... Ba5 {[%clk 0:02:41.8]} 22. Nb4
{[%clk 0:02:03.7]} 22... Nxb4 {[%clk 0:02:42.3]} 23. axb4 {[%clk 0:02:03.1]}
23... Bb6 {[%clk 0:02:43.1]} 24. Red1 {[%clk 0:01:50.5]} 24... g5 {[%clk
0:02:36.3]} 25. Nd4 {[%clk 0:01:48.7]} 25... Bxg2 {[%clk 0:02:36.3]} 26. Kxg2
{[%clk 0:01:49.6]} 26... Bxd4 {[%clk 0:02:28.1]} 27. Qxd4 {[%clk 0:01:49.6]}
27... Qxd4 {[%clk 0:02:29]} 28. Rxd4 {[%clk 0:01:50.1]} 28... Rxe2 {[%clk
0:02:29.7]} 29. Rxd5 {[%clk 0:01:34.7]} 29... Rxb2 {[%clk 0:02:29.7]} 30. Rd7
{[%clk 0:01:33.8]} 30... Rxb4 {[%clk 0:02:29.8]} 31. Rcc7 {[%clk 0:01:17.5]}
31... Rf8 {[%clk 0:02:26.6]} 32. Kf3 {[%clk 0:00:36.4]} 32... a3 {[%clk
0:02:23.5]} 33. Rd3 {[%clk 0:00:33]} 33... Ra4 {[%clk 0:02:23.1]} 34. Rd1 {[%clk
0:00:30.7]} 34... a2 {[%clk 0:02:23.6]} 35. Ra1 {[%clk 0:00:28.6]} 35... b5
{[%clk 0:02:24]} 36. Rc2 {[%clk 0:00:28.7]} 36... Rfa8 {[%clk 0:02:23.5]} 37.
Rb2 {[%clk 0:00:29]} 37... b4 {[%clk 0:02:24.1]} 38. Kg4 {[%clk 0:00:28.7]}
38... b3+ {[%clk 0:02:23.7]} 39. Kh5 {[%clk 0:00:28.7]} 39... Ra3 {[%clk
0:02:23.3]} 40. f4 {[%clk 0:00:27.7]} 40... Rc8 {[%clk 0:02:22.5]} 41. Kxh6
{[%clk 0:00:21.8]} 41... Rc2 {[%clk 0:02:20.1]} 42. Rxc2 {[%clk 0:00:14.6]}
42... bxc2 {[%clk 0:02:21]} 43. fxg5 {[%clk 0:00:15.1]} 43... Ra6+ {[%clk
0:02:13.9]} 44. g6 {[%clk 0:00:12.2]} 44... Rxg6+ {[%clk 0:02:13.8]} 45. Kh5
{[%clk 0:00:12.8]} 45... Rc6 {[%clk 0:02:14.7]} 46. Rxa2 {[%clk 0:00:12.7]}
46... c1=Q {[%clk 0:02:15.2]} 47. Ra8+ {[%clk 0:00:11.6]} 47... Kg7 {[%clk
0:02:15.3]} 48. Kh4 {[%clk 0:00:10.9]} 48... Rh6+ {[%clk 0:02:13.5]} 49. Kg4
{[%clk 0:00:10.9]} 49... Qd1+ {[%clk 0:02:13.8]} 50. Kf4 {[%clk 0:00:10.8]}
50... Qd4+ {[%clk 0:02:13.9]} 51. Kf3 {[%clk 0:00:11]} 51... Qd5+ {[%clk
0:02:14.5]} 0-1